fUST/lending_fUST_20250310
["ID","MTS","AMOUNT","RATE_DAILY","PERIOD"]
[355767962,1741546247053,-500.0,0.00047671,120]
[355767964,1741546247063,-500.0,0.00047671,120]
[355767965,1741546247073,-500.0,0.00047671,120]
[355767968,1741546247082,-500.0,0.00047671,120]
[355767970,1741546247093,-500.0,0.00047671,120]
[355767971,1741546247102,-500.0,0.00047671,120]
[355767974,1741546247113,-500.0,0.00047671,120]
[355767976,1741546247122,-1964.34,0.00047671,120]
[355767977,1741546247132,-500.0,0.00047671,120]
[355767980,1741546247143,-500.0,0.00047671,120]
[355767982,1741546247153,-500.0,0.00047671,2]
[355767983,1741546247163,-12500.1,0.00047671,2]
[355767984,1741546247173,-606.96,0.00047671,120]
[355767985,1741546247183,-625.69,0.00047671,120]
[355767986,1741546247195,-161.0,0.00047682,90]
[355767987,1741546247205,-768.4,0.000477,30]
[355767989,1741546247216,-1410.22,0.000477,2]
[355767991,1741546247226,-150.0,0.00047712,30]
[355767993,1741546247236,-154.22678559,0.00047726,120]
[355767995,1741546247245,-600.0,0.00047777,120]
[355767997,1741546247255,-160.0,0.00047878,3]
[355767999,1741546247264,-160.68518605,0.00047922,120]
[355768001,1741546247274,-1000.0,0.00047945,2]
[355768003,1741546247286,-1000.0,0.00047945,2]
[355768005,1741546247295,-1000.0,0.00047945,2]
[355768007,1741546247304,-500.0,0.00047945,60]
[355768009,1741546247314,-19503.04,0.00048,120]
[355768011,1741546247325,-11423.0,0.00048,120]
[355768013,1741546247334,-7666.50175444,0.00048,120]
[355768014,1741546247343,-6199.83,0.00048,90]
[355768016,1741546247353,-23808.55278418,0.00048,120]
[355768018,1741546247363,-154.22678559,0.00048,120]
[355768020,1741546247373,-600.0,0.0004802,2]
[355768023,1741546247383,-531.0,0.0004806,2]
[355768025,1741546247392,-531.0,0.0004806,2]
[355768027,1741546247401,-531.0,0.0004806,2]
[355768029,1741546247413,-531.0,0.0004806,2]
[355768031,1741546247423,-531.0,0.0004806,2]
[355768033,1741546247432,-531.0,0.0004806,2]
[355768035,1741546247443,-531.0,0.0004806,2]
[355768037,1741546247453,-531.0,0.0004806,2]
[355768039,1741546247463,-531.0,0.0004806,2]
[355768041,1741546247473,-531.0,0.0004806,2]
[355768043,1741546247483,-531.0,0.0004806,2]
[355768045,1741546247493,-531.0,0.0004806,2]
[355768047,1741546247503,-531.0,0.0004806,2]
[355768049,1741546247513,-531.0,0.0004806,2]
[355768051,1741546247522,-531.0,0.00048064,2]
[355768053,1741546247532,-531.0,0.00048064,2]
[355768056,1741546247545,-531.0,0.00048064,2]
[355768058,1741546247555,-531.0,0.00048064,2]
[355768060,1741546247564,-531.0,0.00048064,2]
[355768061,1741546247574,-531.0,0.00048064,2]
[355768063,1741546247584,-531.0,0.00048064,2]
[355768065,1741546247593,-531.0,0.00048064,2]
[355768067,1741546247603,-531.0,0.00048064,2]
[355768069,1741546247613,-531.0,0.00048064,2]
[355768071,1741546247623,-531.0,0.00048064,2]
[355768074,1741546247633,-531.0,0.00048064,2]
[355768076,1741546247643,-531.0,0.00048064,2]
[355768077,1741546247653,-20000.0,0.000481,120]
[355768080,1741546247664,-405.24872847,0.000481,2]
[355768082,1741546247674,-300.0,0.000481,3]
[355768084,1741546247685,-20000.0,0.000482,120]
[355768086,1741546247695,-232.14293314,0.000482,18]
[355768097,1741546247704,-500.0,0.00048219,120]
[355768099,1741546247799,-581.94,0.00048219,120]
[355768101,1741546247809,-510.45298943,0.00048219,120]
[355768103,1741546247819,-500.0,0.00048219,120]
[355768105,1741546247829,-610.4,0.00048219,120]
[355768107,1741546247839,-500.0,0.00048219,120]
[355768109,1741546247849,-1000.0,0.00048219,2]
[355768111,1741546247861,-500.0,0.00048219,2]
[355768113,1741546247873,-500.0,0.00048219,120]
[355768115,1741546247884,-500.0,0.00048219,120]
[355768117,1741546247893,-1000.0,0.00048219,2]
[355768119,1741546247905,-500.0,0.00048219,120]
[355768122,1741546247915,-500.0,0.00048219,120]
[355768124,1741546247925,-577.16,0.00048219,120]
[355768126,1741546247935,-500.0,0.00048219,120]
[355768128,1741546247946,-500.0,0.00048219,15]
[355768130,1741546247959,-526.33,0.00048219,120]
[355768132,1741546247971,-1300.38,0.00048219,2]
[355768134,1741546247981,-500.0,0.00048219,120]
[355768136,1741546247991,-1149.21,0.00048219,120]
[355768138,1741546248001,-530.69195923,0.00048219,120]
[355768140,1741546248012,-2466.6,0.00048219,120]
[355768142,1741546248022,-500.0,0.00048219,120]
[355768144,1741546248033,-500.0,0.00048219,120]
[355768146,1741546248047,-500.0,0.00048219,60]
[355768148,1741546248057,-500.0,0.00048219,120]
[355768151,1741546248068,-378.04106269,0.00048219,120]
[355768153,1741546248079,-500.0,0.00048219,120]
[355768155,1741546248090,-500.0,0.00048219,120]
[355768157,1741546248100,-500.0,0.00048219,120]
[355768158,1741546248110,-500.0,0.00048219,120]
[355768160,1741546248120,-513.79,0.00048219,120]
[355768163,1741546248130,-500.0,0.00048219,120]
[355768165,1741546248140,-500.0,0.00048219,120]
[355768166,1741546248150,-986.51,0.00048219,120]
[355768168,1741546248160,-500.0,0.00048219,120]
[355768170,1741546248169,-500.0,0.00048219,120]
[355768172,1741546248179,-500.0,0.00048219,120]
[355768174,1741546248190,-3034.44,0.00048219,120]
[355768176,1741546248200,-2276.22,0.00048219,120]
[355768178,1741546248210,-500.0,0.00048219,120]
[355768180,1741546248221,-874.36,0.00048219,120]
[355768182,1741546248231,-6014.96,0.00048219,120]
[355768184,1741546248242,-819.56,0.00048219,120]
[355768186,1741546248252,-500.0,0.00048219,120]
[355768188,1741546248262,-549.54,0.00048219,120]
[355768190,1741546248272,-500.0,0.00048219,120]
[355768192,1741546248282,-500.0,0.00048219,120]
[355768194,1741546248294,-31371.4,0.00048219,7]
[355768196,1741546248304,-955.96,0.00048219,120]
[355768198,1741546248314,-3964.56,0.00048219,120]
[355768201,1741546248326,-500.0,0.00048219,120]
[355768203,1741546248336,-931.37,0.00048219,120]
[355768206,1741546248353,-1449.95,0.00048219,120]
[355768209,1741546248374,-530.63,0.00048219,120]
[355768211,1741546248391,-681.22,0.00048219,120]
[355768214,1741546248409,-500.0,0.00048219,120]
[355768217,1741546248429,-938.04,0.00048219,120]
[355768221,1741546248450,-500.0,0.00048219,120]
[355768223,1741546248466,-500.0,0.00048219,120]
[355768226,1741546248484,-834.01,0.00048219,120]
[355768229,1741546248503,-500.0,0.00048219,120]
[355768232,1741546248516,-1504.79,0.00048219,60]
[355768234,1741546248531,-500.0,0.00048219,120]
[355768237,1741546248550,-500.0,0.00048219,120]
[355768240,1741546248568,-500.0,0.00048219,120]
[355768243,1741546248587,-539.21077232,0.00048219,120]
[355768245,1741546248600,-500.0,0.00048219,120]
[355768248,1741546248614,-500.0,0.00048219,120]
[355768251,1741546248634,-500.0,0.00048219,120]
[355768253,1741546248648,-500.0,0.00048219,120]
[355768256,1741546248665,-500.0,0.00048219,120]
[355768259,1741546248680,-500.0,0.00048219,120]
[355768261,1741546248693,-500.0,0.00048219,120]
[355768264,1741546248708,-500.0,0.00048219,120]
[355768266,1741546248724,-500.0,0.00048219,120]
[355768269,1741546248739,-500.0,0.00048219,120]
[355768272,1741546248754,-500.0,0.00048219,120]
[355768274,1741546248769,-500.0,0.00048219,120]
[355768277,1741546248784,-500.0,0.00048219,120]
[355768279,1741546248801,-500.0,0.00048219,120]
[355768281,1741546248815,-500.0,0.00048219,120]
[355768284,1741546248832,-500.0,0.00048219,120]
[355768287,1741546248847,-500.0,0.00048219,120]
[355768289,1741546248862,-1964.34,0.00048219,120]
[355768291,1741546248880,-500.0,0.00048219,120]
[355768294,1741546248895,-500.0,0.00048219,120]
[355768296,1741546248911,-500.0,0.00048219,2]
[355768299,1741546248926,-12500.1,0.00048219,2]
[355768302,1741546248942,-606.96,0.00048219,120]
[355768304,1741546248959,-625.69,0.00048219,120]
[355768307,1741546248974,-154.22678559,0.00048219,120]
[355768309,1741546248989,-20000.0,0.000483,120]
[355768312,1741546249006,-600.0,0.00048325,120]
[355768314,1741546249022,-154.22678559,0.00048356,120]
[355768317,1741546249040,-200.67557676,0.00048373,10]
[355768319,1741546249057,-9875.79839133,0.00048393,2]
[355768322,1741546249073,-6978.069862,0.000484,120]
[355768324,1741546249088,-20000.0,0.000484,120]
[355768327,1741546249104,-73373.35137037,0.000484,120]
[355768330,1741546249120,-300.0,0.000484,26]
[355768332,1741546249131,-183.873572,0.000484,2]
[355768334,1741546249141,-577.19,0.000484,30]
[355768336,1741546249151,-160.68518605,0.00048411,120]
[355768338,1741546249161,-503.99558825,0.0004846,60]
[355768353,1741546249171,-500.0,0.0004846,60]
[355768357,1741546249339,-1000.0,0.00048493,120]
[355768359,1741546249350,-1000.0,0.00048493,120]
[355768361,1741546249360,-1000.0,0.00048493,120]
[355768363,1741546249370,-1000.0,0.00048493,120]
[355768365,1741546249380,-1000.0,0.00048493,120]
[355768367,1741546249390,-1000.0,0.00048493,120]
[355768369,1741546249400,-1000.0,0.00048493,120]
[355768372,1741546249410,-1014.3195053,0.00048493,120]
[355768374,1741546249421,-500.0,0.00048493,60]
[355768375,1741546249430,-1000.0,0.00048499,120]
[355768377,1741546249439,-718643.58507552,0.000485,120]
[355768431,1741546249971,-324.48193454,0.00046189,2]
[355768453,1741546250191,-244.17938227,0.00046189,2]
[355768455,1741546250201,-108.19665989,0.00046189,2]
[355768462,1741546251047,-391.80334011,0.00046189,2]
[355768463,1741546251056,-278.43244557,0.00046189,2]
[355768464,1741546251189,-221.56755443,0.00046189,2]
[355768465,1741546251199,-273.82,0.00046565,30]
[355768466,1741546251208,-557.33,0.00046575,120]
[355768467,1741546251218,-500.0,0.00046575,120]
[355768468,1741546251228,-1120.77,0.00047099,10]
[355768469,1741546251237,-500.0,0.00047123,2]
[355768470,1741546251246,-500.0,0.00047671,2]
[355768471,1741546251255,-500.0,0.00047693,6]
[355768472,1741546251265,-500.0,0.0004783,6]
[355768473,1741546251274,-500.0,0.00047967,6]
[355768474,1741546251283,-500.0,0.00048104,6]
[355768475,1741546251296,-508.26965645,0.00048219,2]
[355768476,1741546251305,-500.0,0.00048241,6]
[355768477,1741546251315,-129945.46900486,0.000485,120]
[355768683,1741546328053,22622.0232772,0.00041783,2]
[355768684,1741546648660,500.0,0.00028,10]
[355768699,1741547243094,-289.5656307,0.0002802,2]
[355768700,1741547243130,-155.50497719,0.0002802,2]
[355768701,1741547244098,-344.49502281,0.0002802,2]
[355768702,1741547244120,-289.5656307,0.0002802,2]
[355768703,1741547244142,-147.98878049,0.0002802,2]
[355768704,1741547249095,-141.57685021,0.0002802,2]
[355768705,1741547249119,-228.36627315,0.00032147,2]
[355768706,1741547249142,-400.0,0.00035259,2]
[355768707,1741547249164,-833.39593935,0.000359,7]
[355768708,1741547249194,-1429.86533612,0.000359,7]
[355768709,1741547249217,-500.0,0.00036178,2]
[355768710,1741547249243,-303.941176,0.0003629,2]
[355768711,1741547249266,-5110.16466337,0.0003642,2]
[355768712,1741547254833,631.3031079,0.00028,10]
[355768853,1741547351123,-500.0,0.0002802,2]
[355768854,1741547359112,-291.95118373,0.0003642,2]
[355768855,1741547359315,-509.8519251,0.00036585,64]
[355768856,1741547359340,-3471.03219684,0.00036821,2]
[355768857,1741547359372,-21428.96780316,0.00036821,2]
[355768858,1741547359396,-203.4685256,0.00037589,2]
[355768859,1741547359425,-160.67428034,0.00038659,112]
[355768860,1741547359448,-150.0,0.00038759,2]
[355768861,1741547359471,-150.0,0.00040129,2]
[355768862,1741547359495,-500.0,0.00041358,31]
[355768863,1741547359519,-404.40496379,0.00041358,31]
[355768864,1741547359545,-500.0,0.00041358,2]
[355768865,1741547359568,-500.0,0.00041358,31]
[355768866,1741547359592,-500.0,0.00041358,2]
[355768867,1741547359615,-185.80534605,0.00041358,31]
[355768868,1741547359640,-500.0,0.00041358,2]
[355768869,1741547359670,-500.0,0.00041358,2]
[355768870,1741547359695,-500.0,0.00041358,2]
[355768871,1741547359721,-500.0,0.00041358,2]
[355768872,1741547359747,-500.0,0.00041358,2]
[355768873,1741547359770,-326.21529963,0.00041358,2]
[355768874,1741547359794,-500.0,0.00041358,2]
[355768875,1741547359815,-552.31537716,0.00041358,31]
[355768876,1741547359839,-500.0,0.00041358,2]
[355768877,1741547359862,-500.0,0.00041358,2]
[355768878,1741547359889,-500.0,0.00041358,2]
[355768879,1741547359913,-500.0,0.00041358,2]
[355768880,1741547359936,-500.0,0.00041358,2]
[355768881,1741547359958,-500.0,0.00041358,2]
[355768882,1741547359980,-500.0,0.00041358,2]
[355768883,1741547360003,-500.0,0.00041358,2]
[355768884,1741547360026,-500.0,0.00041358,2]
[355768885,1741547360049,-500.0,0.00041358,2]
[355768886,1741547360071,-500.0,0.00041358,2]
[355768887,1741547360095,-500.0,0.00041358,2]
[355768888,1741547360119,-239.5757477,0.00041358,2]
[355768889,1741547360143,-500.0,0.00041358,2]
[355768890,1741547360169,-500.0,0.00041358,2]
[355768891,1741547360194,-500.0,0.00041358,2]
[355768892,1741547360217,-500.0,0.00041358,2]
[355768893,1741547360240,-500.0,0.00041358,2]
[355768894,1741547360263,-615.80353315,0.00041359,2]
[355768895,1741547360286,-336.0,0.00041359,2]
[355768896,1741547360307,-9650.7158308,0.00041363,120]
[355768897,1741547360328,-452.72699327,0.00041386,2]
[355768898,1741547360349,-150.0,0.00041499,30]
[355768899,1741547360370,-349.82031971,0.00041533,2]
[355768900,1741547360391,-352.59653131,0.00041533,10]
[355768901,1741547360412,-360.2453854,0.00041533,10]
[355768902,1741547360433,-138.19987797,0.00041533,10]
[355768903,1741547363083,-361.80012203,0.00041533,10]
[355768904,1741547363105,-500.0,0.00041533,2]
[355768905,1741547363126,-500.0,0.00041533,10]
[355768906,1741547363147,-306.25154817,0.00041635,2]
[355768907,1741547363170,-169.91892782,0.00041772,31]
[355768908,1741547363191,-1139.91078435,0.00041772,10]
[355768909,1741547370063,-312.53921565,0.00041772,10]
[355768910,1741547370085,-3102.04629232,0.00041772,3]
[355768911,1741547370106,-304.06792663,0.00041773,10]
[355768953,1741547432027,-365.3713356,0.00039433,2]
[355768954,1741547432037,-762.31921696,0.00041699,28]
[355768955,1741547432083,-100.61095182,0.00041699,28]
[355768956,1741547432094,-550.0,0.00041772,5]
[355768957,1741547432103,-158.53339584,0.00041773,10]
[355768958,1741547432114,-500.0,0.00041773,10]
[355768959,1741547432123,-305.69556243,0.00041773,7]
[355768960,1741547432133,-464.53220183,0.00041773,10]
[355768961,1741547432143,-510.05,0.00041773,30]
[355768962,1741547432152,-425.05,0.00041773,30]
[355768963,1741547432162,-354.2,0.00041773,30]
[355768964,1741547432172,-31085.8711214,0.00041783,2]
[355768968,1741547438886,-308.11440052,0.00041783,2]
[355769370,1741547442907,-30951.06937438,0.00041783,2]
[355769372,1741547442916,-150.0,0.00041799,30]
[355769374,1741547442926,-404.03,0.000418,30]
[355769376,1741547442935,-2187.81923308,0.000419,9]
[355769378,1741547442945,-150.0,0.00043169,30]
[355769380,1741547442954,-569.02,0.00043835,120]
[355769382,1741547442963,-862.93016874,0.00044156,28]
[355769384,1741547442973,-365.3713356,0.00044433,2]
[355769386,1741547442984,-591.0,0.00044474,5]
[355769388,1741547442993,-150.0,0.00044539,30]
[355769390,1741547443003,-500.0,0.00045205,60]
[355769392,1741547443012,-500.0,0.00045479,60]
[355769394,1741547443022,-500.0,0.0004565,10]
[355769397,1741547443031,-500.0,0.00045753,60]
[355769400,1741547443041,-150.0,0.00045909,30]
[355769403,1741547443050,-500.0,0.0004596,10]
[355769406,1741547443060,-500.0,0.0004596,10]
[355769408,1741547443070,-160.04271205,0.0004596,5]
[355769410,1741547443079,-452.03626924,0.0004596,10]
[355769412,1741547443088,-500.0,0.0004596,10]
[355769414,1741547443098,-500.0,0.0004596,10]
[355769416,1741547443107,-500.0,0.0004596,2]
[355769418,1741547443116,-7.71390691,0.0004596,10]
[355769420,1741547443128,-492.28609309,0.0004596,10]
[355769422,1741547443138,-500.0,0.00046027,60]
[355769425,1741547443153,-2726.40110477,0.00046235,2]
[355769427,1741547443162,-500.0,0.00046301,60]
[355769429,1741547443171,-204.98,0.00046563,30]
[355769431,1741547443181,-170.82,0.00046563,30]
[355769433,1741547443190,-854.1,0.00046563,30]
[355769435,1741547443200,-295.17,0.00046565,30]
[355769437,1741547443209,-245.98,0.00046565,30]
[355769439,1741547443219,-700.45,0.00046565,10]
[355769441,1741547443228,-1093.64,0.00046565,10]
[355769443,1741547443240,-901.69958878,0.00046565,10]
[355769471,1741547443512,-9.66041122,0.00046565,10]
[355769473,1741547443524,-759.47,0.00046565,10]
[355769475,1741547443534,-7480.86958877,0.00046565,4]
[355769698,1741547446095,-86.89438156,0.00046565,4]
[355770056,1741547849757,500.0,0.00028,10]
[355770060,1741548284391,160.0,0.0002,3]
[355770061,1741548294644,421.35807882,0.0002,2]
[355770062,1741548299099,421.35807882,0.00025,2]
[355770064,1741548432158,-201.95,0.00027205,2]
[355770065,1741548432181,-166.66666666,0.0002792,2]
[355770066,1741548432203,-421.35807882,0.00028,2]
[355770067,1741548432227,-300.0,0.00028019,2]
[355770068,1741548432250,-500.0,0.0002802,2]
[355770069,1741548432272,-478.58465262,0.0002802,2]
[355770070,1741548432295,-500.0,0.0002802,2]
[355770071,1741548432317,-500.0,0.0002802,2]
[355770072,1741548432341,-420.0,0.0003026,2]
[355770073,1741548432363,-2128.58159218,0.000309,5]
[355770074,1741548432387,-267.0,0.0003268,2]
[355770075,1741548432411,-500.0,0.00035121,7]
[355770076,1741548432434,-500.0,0.00035121,2]
[355770077,1741548432455,-28.47917788,0.00035121,7]
[355770078,1741548443129,-500.0,0.0002802,2]
[355770079,1741548443153,-573.32946206,0.0002802,2]
[355770080,1741548447441,757.89765256,0.00028,10]
[355770081,1741548471348,245.26959856,0.00023,2]
[355770082,1741548471566,46500.0,0.00018,2]
[355770083,1741548481407,10705.97855795,0.0002035,2]
[355770088,1741548512196,346.50516757,0.00022,2]
[355770089,1741548513858,4095.01652269,0.0001711,2]
[355770090,1741548517346,4212.19958448,0.00022,2]
[355770091,1741548518211,18719.78683215,0.000145,2]
[355770092,1741548519347,205.22387757,0.00025,2]
[355770093,1741548519965,1665.40073973,0.00024,2]
[355770094,1741548520336,835.40404145,0.00025,2]
[355770095,1741548521005,300.0,0.0001,2]
[355770096,1741548523572,706.41285824,0.00022,2]
[355770097,1741548524301,26298.80137731,0.00024,2]
[355770098,1741548547089,-1326.81741645,0.0002799,2]
[355770099,1741548547117,-16.07875074,0.0002802,2]
[355770100,1741548547145,-500.0,0.0002802,2]
[355770101,1741548547172,-119.21934774,0.0002802,2]
[355770102,1741548547208,-380.78065226,0.0002802,2]
[355770103,1741548547236,-229.02390673,0.0002802,2]
[355770104,1741548547263,-250.0,0.00030681,2]
[355770105,1741548547290,-2057.62887246,0.000309,5]
[355770106,1741548560108,-277.0,0.00034999,2]
[355770107,1741548560129,-10529.03509989,0.00035,2]
[355770108,1741548560150,-1132.37355708,0.0003502,2]
[355770109,1741548560173,-500.0,0.0003512,7]
[355770110,1741548560198,-500.0,0.0003512,2]
[355770111,1741548560220,-500.0,0.0003512,7]
[355770112,1741548560246,-500.0,0.0003512,2]
[355770113,1741548560269,-500.0,0.0003512,2]
[355770114,1741548560290,-500.0,0.0003512,2]
[355770115,1741548560310,-611.31297762,0.0003512,7]
[355770116,1741548560331,-500.0,0.0003512,7]
[355770117,1741548560354,-500.0,0.0003512,2]
[355770118,1741548560379,-500.0,0.0003512,2]
[355770119,1741548560403,-59.33635108,0.0003512,2]
[355770120,1741548582703,618.23945584,0.000329,2]
[355770155,1741548632108,-440.66364892,0.0003512,2]
[355770157,1741548632118,-376.34458525,0.0003512,7]
[355770159,1741548632128,-500.0,0.0003512,2]
[355770161,1741548632138,-500.0,0.0003512,2]
[355770163,1741548632148,-500.0,0.0003512,2]
[355770165,1741548632157,-500.0,0.0003512,2]
[355770166,1741548632167,-500.0,0.0003512,2]
[355770167,1741548632177,-500.0,0.0003512,2]
[355770168,1741548632187,-500.0,0.0003512,2]
[355770169,1741548632197,-500.0,0.0003512,2]
[355770170,1741548632207,-500.0,0.0003512,2]
[355770171,1741548632217,-500.0,0.0003512,2]
[355770172,1741548632227,-500.0,0.0003512,2]
[355770173,1741548632236,-500.0,0.0003512,2]
[355770174,1741548632246,-500.0,0.0003512,2]
[355770175,1741548632256,-500.0,0.0003512,2]
[355770176,1741548632266,-500.0,0.0003512,2]
[355770177,1741548632275,-207.87210683,0.0003512,2]
[355770178,1741548632286,-500.0,0.0003512,2]
[355770179,1741548632296,-500.0,0.0003512,2]
[355770180,1741548632306,-500.0,0.0003512,2]
[355770181,1741548632315,-500.0,0.0003512,2]
[355770182,1741548632325,-500.0,0.0003512,2]
[355770183,1741548632335,-500.0,0.0003512,2]
[355770184,1741548632345,-500.0,0.0003512,2]
[355770185,1741548632354,-500.0,0.0003512,2]
[355770186,1741548632366,-500.0,0.0003512,2]
[355770187,1741548632376,-500.0,0.0003512,2]
[355770188,1741548632386,-500.0,0.0003512,2]
[355770189,1741548632397,-500.0,0.0003512,2]
[355770190,1741548632407,-500.0,0.0003512,2]
[355770191,1741548632417,-500.0,0.0003512,2]
[355770192,1741548632427,-500.0,0.0003512,2]
[355770193,1741548632436,-500.0,0.0003512,2]
[355770194,1741548632446,-500.0,0.0003512,2]
[355770195,1741548632455,-500.0,0.0003512,2]
[355770196,1741548632465,-500.0,0.0003512,2]
[355770197,1741548632475,-500.0,0.0003512,2]
[355770198,1741548632484,-500.0,0.0003512,2]
[355770199,1741548632494,-625.4108102,0.0003512,2]
[355770200,1741548632503,-500.0,0.0003512,2]
[355770201,1741548632513,-500.0,0.0003512,2]
[355770202,1741548632522,-500.0,0.0003512,2]
[355770203,1741548632536,-11741.13185094,0.00035122,2]
[355770204,1741548632667,-8246.4,0.00035122,2]
[355770205,1741548632707,-3492.01199434,0.00035122,2]
[355770206,1741548632818,-1420.45615472,0.00035122,2]
[355770207,1741548632827,-500.80423028,0.000352,5]
[355770208,1741548632837,-505.90606582,0.000352,5]
[355770209,1741548632848,-500.0,0.000352,5]
[355770210,1741548632858,-500.0,0.000352,5]
[355770211,1741548632867,-274.78771656,0.000352,5]
[355770212,1741548632876,-500.0,0.000352,5]
[355770213,1741548632885,-505.57002045,0.000352,5]
[355770214,1741548632894,-500.0,0.000352,2]
[355770215,1741548632904,-500.0,0.00035416,2]
[355770216,1741548632914,-805.5060208,0.00035755,2]
[355770217,1741548632924,-498.306055,0.0003589,2]
[355770218,1741548632933,-276.795,0.00035994,5]
[355770219,1741548632943,-156.93485777,0.000362,98]
[355770220,1741548632953,-1132.37355705,0.00037517,2]
[355770221,1741548632962,-499.7669555,0.00037888,2]
[355770222,1741548632972,-618.23945584,0.000379,2]
[355770223,1741548632981,-988.18,0.0004,120]
[355770224,1741548632991,-1132.37355705,0.00040015,28]
[355770225,1741548633001,-1000.0,0.00040679,5]
[355770226,1741548633011,-1000.0,0.00040679,2]
[355770227,1741548633020,-1819.9795269,0.00041184,2]
[355770228,1741548633030,-498.306055,0.00041211,2]
[355770229,1741548633040,-1132.37355705,0.00042512,28]
[355770230,1741548633050,-276.795,0.0004285,14]
[355770231,1741548633062,-500.0,0.00043835,120]
[355770232,1741548633072,-10290.74408245,0.00045,2]
[355770233,1741548633082,-158.0,0.00045,90]
[355770234,1741548633092,-357.28384236,0.00045,2]
[355770235,1741548633102,-1132.37355705,0.0004501,28]
[355770236,1741548633111,-500.0,0.00045205,60]
[355770237,1741548633121,-154.22678559,0.00045452,120]
[355770238,1741548633131,-500.0,0.00045479,60]
[355770239,1741548633141,-500.0,0.000455,10]
[355770240,1741548633151,-500.0,0.000455,10]
[355770241,1741548633162,-500.0,0.000455,10]
[355770242,1741548633171,-500.0,0.00045753,60]
[355770243,1741548633182,-6542.75691645,0.00045869,19]
[355770244,1741548633192,-500.0,0.00046027,60]
[355770245,1741548633202,-154.22678559,0.00046055,120]
[355770246,1741548633212,-428.74557334,0.00046076,2]
[355770247,1741548633222,-500.0,0.00046301,60]
[355770248,1741548633231,-416.66666667,0.0004632,2]
[355770249,1741548633241,-232.14293314,0.0004639,18]
[355770250,1741548633250,-167.42629091,0.00046432,2]
[355770251,1741548633260,-1346.02603186,0.00046432,2]
[355770252,1741548633270,-200.981,0.00046447,2]
[355770253,1741548633279,-247.31031769,0.00046447,2]
[355770254,1741548633289,-746.13,0.00046454,30]
[355770255,1741548633299,-170.82,0.00046454,30]
[355770256,1741548633310,-1541.52,0.00046455,10]
[355770257,1741548633320,-1284.6,0.00046455,10]
[355770258,1741548633329,-1070.5,0.00046455,10]
[355770259,1741548633339,-14242.23892366,0.00046464,30]
[355770260,1741548633352,-325.05563696,0.00046464,30]
[355770311,1741548638169,-502.9585324,0.000352,5]
[355770313,1741548638179,-1582.34935938,0.00046464,30]
[355770315,1741548638189,-6049.06029141,0.00046465,4]
[355770318,1741548638200,-30245.3014571,0.00046465,4]
[355770319,1741548638209,-16380.93555015,0.00046475,46]
[355770321,1741548638219,-7301.24422318,0.00046475,46]
[355770324,1741548638228,-2848.75476154,0.00046475,2]
[355770326,1741548638238,-151.0,0.00046475,120]
[355770328,1741548638248,-151.0,0.00046475,120]
[355770330,1741548638257,-151.0,0.00046475,120]
[355770332,1741548638267,-151.0,0.00046475,120]
[355770334,1741548638276,-222000.0,0.00046475,2]
[355770336,1741548638286,-498.306055,0.00046532,2]
[355770338,1741548638296,-500.0,0.00046563,120]